Cogmind - Beta 11 X8 @@@ ROGUE MODE // 2021.11.11 @ 16:43:31 Player: Terminus Result: Destroyed by G-47 Trooper with Particle Gun Performance ------------- Evolutions (1) 500 Regions Visited (6) 1200 Robots Destroyed (95) 475 Value Destroyed (1930) 1930 Prototype IDs (11) 220 Alien Tech Used (0) 0 Bonus (-3111) -3111 TOTAL SCORE: 1214 Bonus ------- High Alert Combat Kills 13 Follower Combat Kills 106 Friendly Fire -3230 Cogmind --------- Core Integrity 0/400 Matter 276/300 Energy 280/280 System Corruption 0% Temperature Cool (27) Movement Walking (190) Ox1 Location -8/Mines Parts ------- > --- POWER (1) -------- Cooled Ion Engine > --- PROPULSION (2) --- Advanced Myomer Leg Advanced Myomer Leg > --- UTILITY (3) ------ Experimental Heat Sink Huge Storage Unit Experimental Core Analyzer > --- WEAPON (3) ------- Minigun 8R-AWN's Boregun 8R-AWN's Boregun > --- INVENTORY (25) --- Improved Deuterium Engine Reinforced Fission Core Armored Treads Armored Treads Armored Treads Armored Treads Experimental Flexi-carbon Leg Cooling System YI-UF0's Bottomless Matter Pit (393) Improved Targeting Computer Experimental Targeting Computer Advanced Weapon Cycler Hacking Suite Hacking Suite Improved Assault Rifle Improved Assault Rifle Improved Assault Rifle Improved Assault Rifle Improved Assault Rifle Minigun Minigun Minigun Rocket Launcher Plasma Cutter Ripper Peak State ------------ > --- POWER ------------ Cooled Ion Engine > --- PROPULSION ------- Advanced Myomer Leg Advanced Myomer Leg > --- UTILITY ---------- Huge Storage Unit 8R-AWN's Armor/EX > --- WEAPON ----------- Minigun 8R-AWN's Boregun 8R-AWN's Boregun > --- INVENTORY -------- Improved Deuterium Engine Reinforced Fission Core Armored Treads Armored Treads Armored Treads Armored Treads Experimental Heat Sink Cooling System YI-UF0's Bottomless Matter Pit Improved Targeting Computer Experimental Targeting Computer Advanced Weapon Cycler Hacking Suite Improved Assault Rifle Improved Assault Rifle Improved Assault Rifle Improved Assault Rifle Improved Assault Rifle Minigun Minigun Minigun Rocket Launcher Plasma Cutter Katana Ripper [Rating: 72] Favorites ----------- Power Ion Engine Engine Ion Engine Propulsion Light Treads Treads Light Treads Leg Advanced Myomer Leg Utility Huge Storage Unit Device Heat Sink Storage Huge Storage Unit Processor Experimental Core Analyzer Protection Light Armor Plating Weapon Heavy Assault Rifle Ballistic Gun Heavy Assault Rifle Special Weapon Plasma Cutter Slashing Weapon Ripper Build | -11 -10 -10 -9 -9 -9 -8 ------- Run | Scr Mat Min Mat Min Exi Min Slots Evolved 2 | . . . 2 . . . Power . | . . . . . . . Propulsion . | . . . . . . . Utility 1 | . . . 1 . . . Weapon 1 | . . . 1 . . . Parts Attached 67 | 6 9 1 26 6 17 2 Power 8 | 1 2 . 4 . 1 . Engine 8 | 1 2 . 4 . 1 . Core . | . . . . . . . Reactor . | . . . . . . . Propulsion 10 | 2 1 . 4 . 3 . Treads 8 | 2 1 . 4 . 1 . Leg 2 | . . . . . 2 . Wheel . | . . . . . . . Hover . | . . . . . . . Flight . | . . . . . . . Utility 21 | 1 3 . 7 2 6 2 Device 8 | . 1 . 3 1 2 1 Storage 5 | 1 2 . 1 1 . . Processor 1 | . . . . . . 1 Hackware . | . . . . . . . Protection 7 | . . . 3 . 4 . Artifact . | . . . . . . . Weapon 28 | 2 3 1 11 4 7 . Energy Gun . | . . . . . . . Energy Cannon . | . . . . . . . Ballistic Gun 21 | 2 3 1 10 1 4 . Ballistic Cannon . | . . . . . . . Launcher . | . . . . . . . Special Weapon 3 | . . . . 2 1 . Impact Weapon . | . . . . . . . Slashing Weapon 4 | . . . 1 1 2 . Piercing Weapon . | . . . . . . . Special Melee Weapon . | . . . . . . . Unidentified Prototypes 6 | . . . . 1 4 1 Parts Lost 8 | . 1 . 2 . 4 1 Power . | . . . . . . . Propulsion 1 | . . . . . 1 . Utility 5 | . . . 1 . 3 1 Weapon 2 | . 1 . 1 . . . Highest Loss Streak 4 | . 1 . 1 . 4 1 Average Slot Usage (%) 98 | . 98 100 99 100 96 94 Engine 12 | . 14 14 11 11 11 11 Treads 22 | . 27 28 21 22 15 . Leg 1 | . . . . . 5 22 Device 12 | . 12 14 14 10 7 5 Storage 12 | . 14 14 11 11 11 11 Protection 5 | . . . 7 11 11 4 Ballistic Gun 30 | . 27 28 32 28 32 33 Naked Turns . | . . . . . . . Heaviest Build 127 | 13 90 92 102 102 127 127 Greatest Support 60 | 40 40 40 40 40 60 60 Greatest Overweight (x) 39 | . 2 2 2 2 39 2 Average Overweight (x) 1 | . 1 2 2 2 2 1 Largest Inventory Capacity 25 | 8 25 25 25 25 25 25 Average Capacity 23 | 7 20 25 25 25 25 25 Most Carried 25 | 1 16 21 25 25 25 25 Average Carried 20 | . 11 18 24 24 22 24 Final Capacity 25 | 8 25 25 25 25 25 25 Final Carried 25 | 1 16 20 25 25 25 25 Class Distribution -------------------- 44% | Mutant 20% | Tank 16% | Scavenger-Tank 9% | Gunner 6% | Scavenger-Mutant Dominant Class ---------------- Mutant | -10/Materials Mutant | -10/Mines Scavenger-Tank | -9/Materials Tank | -9/Mines Tank | -9/Exiles Scavenger-Mutant | -8/Mines Resources | -11 -10 -10 -9 -9 -9 -8 ----------- Run | Scr Mat Min Mat Min Exi Min Matter Collected 3423 | 260 472 28 1135 343 937 248 Remotely . | . . . . . . . Salvage Created 3476 | . 844 76 1965 283 188 120 Parts 227 | . 61 8 126 17 10 5 Haulers Intercepted 8 | . 2 . 6 . . . Recyclers Shooed 4 | . 1 . 3 . . . Parts Field Recycled . | . . . . . . . Retrieved Matter . | . . . . . . . Parts Self-Destructed . | . . . . . . . Prevented . | . . . . . . . Kills | -11 -10 -10 -9 -9 -9 -8 ------- Run | Scr Mat Min Mat Min Exi Min Combat Hostiles Destroyed 64 | . 18 5 30 6 3 2 Guns 63 | . 18 5 30 6 2 2 Cannons 1 | . . . . . 1 . Classes Destroyed 12 | . 8 . 1 . 2 1 Worker 4 | . 3 . 1 . . . Builder 3 | . 1 . 2 . . . Hauler 8 | . 2 . 6 . . . Recycler 5 | . 2 . 3 . . . Operator 5 | . 1 . 4 . . . Turret 1 | . . . . . 1 . Watcher 7 | . 3 . 4 . . . Swarmer 23 | . 9 5 5 4 . . Grunt 30 | . 9 . 18 2 . 1 Sentry 7 | . . . 7 . . . Hunter 1 | . . . . . . 1 Assembled 2 | . . . . . 2 . Best Kill Streak 6 | . 6 3 4 4 2 2 Combat Bots Only 6 | . 6 3 3 4 2 2 Max Kills in Single Turn 2 | . 1 2 2 1 1 1 Gunslinging 1 | . . 1 1 . . . Exploded . | . . . . . . . Melee . | . . . . . . . Uniques/NPCs Destroyed 2 | . . . . 1 1 . YI-UF0 (-9/Mines) 8R-AWN (-9/Exiles) Combat | -11 -10 -10 -9 -9 -9 -8 -------- Run | Scr Mat Min Mat Min Exi Min Damage Taken 2943 | . 615 30 980 96 841 381 Core 524 | . 101 8 212 16 169 18 Absorbed by Shields . | . . . . . . . Core Remaining (%) 78 | 100 . 56 . . . . Volleys Fired 268 | . 71 3 103 34 43 14 Largest 3 | . 2 2 3 3 3 2 Hottest 80 | . 43 46 75 75 80 60 Shots Fired 625 | . 141 6 308 48 94 28 Gun 589 | . 141 6 308 21 85 28 Cannon . | . . . . . . . Launcher . | . . . . . . . Special 36 | . . . . 27 9 . Kinetic 589 | . 141 6 308 21 85 28 Thermal 36 | . . . . 27 9 . Explosive . | . . . . . . . Electromagnetic . | . . . . . . . Robot Hit Streak 17 | . 11 7 12 9 17 6 Robot Miss Streak 6 | . 4 . 6 2 4 3 Penetration Max 1 | . . . . . . 1 Secondary Targets 15 | . 4 2 7 2 . . Max Gunslinging Chain 1 | . 1 1 1 1 . . Shots Hit Robots 397 | . 89 6 178 38 72 14 Core Hits 162 | . 47 6 72 13 19 5 Critical Kills 3 | . . . 1 . 1 1 Critical Parts Destroyed 8 | . 1 . 1 . 1 5 Critical Strikes 12 | . 1 . 2 1 2 6 Destroy 11 | . 1 . 2 . 2 6 Sever 1 | . . . . 1 . . Melee Attacks 15 | . . . 1 7 7 . Impact . | . . . . . . . Slashing 15 | . . . 1 7 7 . Piercing . | . . . . . . . Sneak Attacks 3 | . . . . 3 . . Combat Hostiles . | . . . . . . . Follow-up Attacks 1 | . . . . . 1 . Damage Inflicted 6435 | . 1125 122 2904 802 1222 260 Guns 5330 | . 1030 99 2779 222 940 260 Cannons . | . . . . . . . Explosions . | . . . . . . . Melee 537 | . . . . 333 204 . Ramming 243 | . 95 23 125 . . . Kinetic 5330 | . 1030 99 2779 222 940 260 Thermal 325 | . . . . 247 78 . Explosive . | . . . . . . . Electromagnetic . | . . . . . . . Impact . | . . . . . . . Slashing 537 | . . . . 333 204 . Piercing . | . . . . . . . Highest Corruption . | . . . . . . . Average Corruption . | . . . . . . . Corruption Purged . | . . . . . . . Overload Shots . | . . . . . . . Overflow Damage 178 | . . . 8 170 . . Projectiles . | . . . . . . . Explosions . | . . . . . . . Melee 178 | . . . 8 170 . . Knockbacks 1 | . . . 1 . . . Impact 1 | . . . 1 . . . Kinetic . | . . . . . . . Secondary . | . . . . . . . Self-Inflicted Damage . | . . . . . . . Shots . | . . . . . . . Rammed 34 | . 16 3 14 1 . . Targets Rammed 38 | . 19 3 15 1 . . Kicked . | . . . . . . . Crushed 4 | . 3 . 1 . . . Highest Temperature 223 | . 12 . 21 . 223 22 Average Temperature 77 | . 7 . 10 . 113 12 Received Heat Transfer 795 | . 240 . 453 12 . 90 Siege Activations . | . . . . . . . Robots Corrupted . | . . . . . . . Combat Hostiles . | . . . . . . . Parts Fried . | . . . . . . . Impact Corruptions 1 | . . . 1 . . . Robots Melted . | . . . . . . . Combat Hostiles . | . . . . . . . Parts Melted . | . . . . . . . Heat Transferred 877 | . . . . 814 63 . Parts Sabotaged . | . . . . . . . Parts Stolen . | . . . . . . . Parts Stripped . | . . . . . . . Power Chain Reactions . | . . . . . . . Missiles Intercepted . | . . . . . . . Alert | -11 -10 -10 -9 -9 -9 -8 ------- Run | Scr Mat Min Mat Min Exi Min Peak Influence 446 | . 372 154 446 304 . 55 Initial 164 | . . 6 . 164 . . Average 155 | . 100 11 290 179 . 31 Maximum Alert Level 2 | . 1 . 2 1 . . Low Security (%) 63 | 100 86 100 23 56 . 100 Level 1 27 | . 13 . 52 43 . . Level 2 8 | . . . 24 . . . Level 3 . | . . . . . . . Level 4 . | . . . . . . . Level 5 . | . . . . . . . High Security . | . . . . . . . Max Security . | . . . . . . . Squads Dispatched 10 | . 4 . 6 . . . Investigation 1 | . 1 . . . . . Extermination . | . . . . . . . Reinforcement 9 | . 3 . 6 . . . Assault . | . . . . . . . Garrison . | . . . . . . . Intercept . | . . . . . . . Construction Impeded . | . . . . . . . Haulers Reinforced . | . . . . . . . Active Scanning Responses . | . . . . . . . Cargo Convoy Interrupts . | . . . . . . . Stealth | -11 -10 -10 -9 -9 -9 -8 --------- Run | Scr Mat Min Mat Min Exi Min Distress Signals 8 | . 2 . 6 . . . Communications Jammed . | . . . . . . . Distress Signals . | . . . . . . . Times Spotted 125 | . 36 5 59 6 11 8 Peak Tracking Total 9 | . 6 3 4 4 9 4 Tactical Retreats 5 | . . . 4 . 1 . Traps | -11 -10 -10 -9 -9 -9 -8 ------- Run | Scr Mat Min Mat Min Exi Min Traps Triggered . | . . . . . . . Indirectly . | . . . . . . . Trap Hack Attempts . | . . . . . . . Triggered . | . . . . . . . Disarmed . | . . . . . . . Reprogrammed . | . . . . . . . Reused 2 | . . . . . 2 . Traps Extracted . | . . . . . . . Installed 3 | . . . . . 3 . Triggered . | . . . . . . . Exploded 3 | . . . . . 3 . Machines | -11 -10 -10 -9 -9 -9 -8 ---------- Run | Scr Mat Min Mat Min Exi Min Machines Disabled 6 | . . . . . 6 . Max in Single Turn 1 | . . . . . 1 . Machines Sabotaged . | . . . . . . . Garrisons Compromised . | . . . . . . . Overloaded Fab Kills . | . . . . . . . Hacking | -11 -10 -10 -9 -9 -9 -8 --------- Run | Scr Mat Min Mat Min Exi Min Machines Accessed 15 | . 8 . 6 . 1 . Terminals 9 | . 5 . 4 . . . Fabricators . | . . . . . . . Repair Stations 2 | . 1 . 1 . . . Recycling Units 2 | . 2 . . . . . Scanalyzers 1 | . . . 1 . . . Garrison Access . | . . . . . . . Total Hacks 56 | . 31 . 21 . 4 . Successful 31 | . 16 . 11 . 4 . Failed 25 | . 15 . 10 . . . Catastrophic . | . . . . . . . Database Lockouts . | . . . . . . . Manual 31 | . 21 . 10 . . . Terminals 39 | . 25 . 14 . . . Fabricators . | . . . . . . . Repair Stations 8 | . 3 . 5 . . . Recycling Units 3 | . 3 . . . . . Scanalyzers 2 | . . . 2 . . . Garrison Access . | . . . . . . . Terminal Hacks 16 | . 8 . 4 . 4 . Record 4 | . . . . . 4 . Prototype ID Bank 3 | . 3 . . . . . Alert Level 3 | . 1 . 2 . . . Unreport Threat 1 | . . . 1 . . . Hauler Manifests 2 | . 1 . 1 . . . Zone Layout 3 | . 3 . . . . . Fabricator Hacks . | . . . . . . . Repair Station Hacks 6 | . 2 . 4 . . . Scan Component 3 | . 1 . 2 . . . Repair 3 | . 1 . 2 . . . Recycling Unit Hacks 1 | . 1 . . . . . Retrieve Components 1 | . 1 . . . . . Scanalyzer 2 | . . . 2 . . . Insert Component 1 | . . . 1 . . . Analyze 1 | . . . 1 . . . Garrison Access Hacks . | . . . . . . . Unauthorized Hacks 6 | . 5 . 1 . . . Terminals 5 | . 4 . 1 . . . Botnet 5 | . 4 . 1 . . . Fabricators . | . . . . . . . Repair Stations . | . . . . . . . Recycling Units 1 | . 1 . . . . . Tunnel 1 | . 1 . . . . . Scanalyzers . | . . . . . . . Garrison Access . | . . . . . . . Data Cores Recovered . | . . . . . . . Used . | . . . . . . . Hacking Detections 12 | . 7 . 5 . . . Full Trace Events 1 | . 1 . . . . . Feedback Events . | . . . . . . . Feedback Blocked . | . . . . . . . Robot Schematics Acquired . | . . . . . . . Robots Built . | . . . . . . . Authchips . | . . . . . . . Time . | . . . . . . . Total Robot Build Rating . | . . . . . . . Part Schematics Acquired 1 | . . . 1 . . . Parts Built . | . . . . . . . Authchips . | . . . . . . . Time . | . . . . . . . Total Part Build Rating . | . . . . . . . Parts Repaired 3 | . 1 . 2 . . . Time 78 | . 26 . 52 . . . Parts Recycled . | . . . . . . . Recycled Matter . | . . . . . . . Retrieved Matter . | . . . . . . . Retrieved Components 10 | . 10 . . . . . Parts Scanalyzed 1 | . . . 1 . . . Part Schematics Acquired 1 | . . . 1 . . . Parts Damaged . | . . . . . . . Bothacking | -11 -10 -10 -9 -9 -9 -8 ------------ Run | Scr Mat Min Mat Min Exi Min Used RIF Installer . | . . . . . . . Robots Hacked . | . . . . . . . Non-combat . | . . . . . . . Combat . | . . . . . . . Robot Hacks Applied . | . . . . . . . Relay Couplers Released . | . . . . . . . Fabnet Peak Effective % . | . . . . . . . Robots Rewired . | . . . . . . . Allies Hacked . | . . . . . . . Hacks Repelled . | . . . . . . . Allies | -11 -10 -10 -9 -9 -9 -8 -------- Run | Scr Mat Min Mat Min Exi Min Total Allies 3 | . . 3 . . . . Largest Group 3 | . . 3 2 . . . Highest-Rated Group 72 | . . 72 41 . . . Highest-Rated Ally 31 | . . 31 31 . . . Total Orders . | . . . . . . . Ally Attacks 20 | . . 3 17 . . . Total Damage 213 | . . 42 171 . . . Kills 6 | . . 1 5 . . . Allies Corrupted . | . . . . . . . Allies Melted . | . . . . . . . Intel | -11 -10 -10 -9 -9 -9 -8 ------- Run | Scr Mat Min Mat Min Exi Min Robot Analysis Total . | . . . . . . . Derelict Logs Recovered 2 | . . 2 . . . . Drone Launches . | . . . . . . . Drone Recoveries . | . . . . . . . Exploration | -11 -10 -10 -9 -9 -9 -8 ------------- Run | Scr Mat Min Mat Min Exi Min Turns Passed 10503 | 70 2303 1849 3103 829 2063 286 Spaces Moved 3067 | 49 737 568 784 210 606 113 Core 17 | 16 . . . . 1 . Treads 2747 | 33 737 568 784 210 415 . Legs 303 | . . . . . 190 113 Wheels . | . . . . . . . Hover . | . . . . . . . Flight . | . . . . . . . Fastest Speed 50 | 50 160 320 320 325 190 190 Average Speed 294 | 124 248 320 322 325 307 211 Slowest Speed 2000 | 160 320 320 325 325 2000 260 Overloaded Moves . | . . . . . . . Propulsion Burnouts . | . . . . . . . Robots Hopped 1 | . . . . 1 . . Cave-ins Triggered . | . . . . . . . Exploration Rate (%) 57 | 4 96 89 78 51 59 24 Regions Visited 6 Branch Regions 4 Pre-discovered Areas 3 | . 1 1 . . 1 . Known Exits Taken . | . . . . . . . Unknown Exits Taken 6 | 1 1 1 1 1 1 . Scrap Searched 5 | . . 3 . 2 . . Spaces Dug 5 | . . . 1 4 . . Terrain Destroyed 20 | . . . 1 4 . 15 Melee 5 | . . . 1 4 . . Projectile 13 | . . . . . . 13 AOE . | . . . . . . . Terrain Rammed . | . . . . . . . Walls Destroyed . | . . . . . . . Machines Disabled . | . . . . . . . Actions | -11 -10 -10 -9 -9 -9 -8 --------- Run | Scr Mat Min Mat Min Exi Min Total 3957 | 55 1061 589 1110 278 732 132 Wait 377 | . 197 7 125 18 28 2 Move 3059 | 48 736 567 783 207 605 113 Hop 1 | . . . . 1 . . Pick Up 67 | 1 20 6 25 2 12 1 Fast Attach 15 | 6 2 . 2 . 4 1 Attach 10 | . 1 . 4 . 4 1 Detach 4 | . . . . . 4 . Swap 42 | . 6 1 20 6 9 . Drop 59 | . 9 2 32 2 14 . Fire 268 | . 71 3 103 34 43 14 Melee 14 | . . . 1 7 6 . Ram . | . . . . . . . Kick . | . . . . . . . Crush 38 | . 19 3 15 1 . . Escape Stasis . | . . . . . . . Rewire . | . . . . . . . Trap 3 | . . . . . 3 . Miscellaneous . | . . . . . . . Route ------- -11/Scrapyard -10/Materials (discovered 5 exits: *Mat x3 / [*Min x2]) -10/Mines (discovered 2 exits: *Mat x2) -9/Materials (discovered 2 exits: [*Mat] / [*Min]) -9/Mines (discovered 2 exits: *Exi / [*Zio]) -9/Exiles -8/Mines (discovered 1 exit: [*Mat]) History --------- Turn | Location | Event 5 | -11/Scrapyard | Discovered new exit (range 15) 71 | -11/Scrapyard | Entered Materials 338 | -10/Materials | Build established: Mutant 407 | -10/Materials | Discovered new exit (range 12) 590 | -10/Materials | Discovered new exit (range 15) 764 | -10/Materials | Repaired Lgt. Treads 954 | -10/Materials | Discovered new exit (range 14) 954 | -10/Materials | Discovered new exit (range 16) 1359 | -10/Materials | Discovered new exit (range 7) 2374 | -10/Materials | Entered Mines 2629 | -10/Mines | Found a hidden stash of uninstalled traps 2893 | -10/Mines | Learned Materials security intel 2969 | -10/Mines | Discovered new exit (range 14) 3117 | -10/Mines | Discovered new exit (range 15) 3168 | -10/Mines | Received a Mining Laser from a helpful Derelict 3546 | -10/Mines | A weapon hastily lodged in a ceiling crevice suddenly fell to the ground 3643 | -10/Mines | Learned location of Zion (-7) 4223 | -10/Mines | Entered Materials 4223 | -9/Materials | Accompanied by 2 allies 4223 | -9/Materials | Evolved 2 slots: Utility x1, Weapon x1 4228 | -9/Materials | Led the pair of lost Derelicts to an unsafe place 4511 | -9/Materials | Build established: Gunner 4632 | -9/Materials | Repaired Lgt. Treads 4659 | -9/Materials | Repaired Lgt. Treads 5348 | -9/Materials | Discovered new exit (range 10) 5613 | -9/Materials | Build established: Scavenger-Tank 6045 | -9/Materials | Discovered new exit (range 16) 6344 | -9/Materials | Core integrity fell below 50% 7326 | -9/Materials | Entered Mines 7470 | -9/Mines | A Derelict revealed a hidden shortcut to a safe place 7631 | -9/Mines | Build established: Tank 7726 | -9/Mines | YI-UF0 nonchalantly dropped a Grenade Launcher on the ground 7928 | -9/Mines | Destroyed YI-UF0 7935 | -9/Mines | Found Prototype Storage 7939 | -9/Mines | Identified YI-UF0's Bottomless Matter Pit 7981 | -9/Mines | Build established: Mutant 8139 | -9/Mines | Deemed a non-threat by the Exiles lab entrance 8142 | -9/Mines | Discovered new exit (range 5) 8155 | -9/Mines | Entered Exiles 8233 | -9/Exiles | Met 8R-AWN 8289 | -9/Exiles | Met EX-HEX 8301 | -9/Exiles | Build established: Tank 8435 | -9/Exiles | Met EX-DEC 8672 | -9/Exiles | Discovered new exit (range 10) 9454 | -9/Exiles | Attacked by the Exiles 9593 | -9/Exiles | Core integrity fell below 20% 9641 | -9/Exiles | Destroyed 8R-AWN 9647 | -9/Exiles | Lost 4 parts (1n3u) 9649 | -9/Exiles | Found Prototype Protection 9649 | -9/Exiles | Identified 8R-AWN's Armor/EX 9689 | -9/Exiles | Found Prototype Processor 9704 | -9/Exiles | Found Prototype Ballistic Gun 9711 | -9/Exiles | Identified 8R-AWN's Boregun 9959 | -9/Exiles | Found 8R-AWN's Boregun 10057 | -9/Exiles | Build established: Scavenger-Mutant 10218 | -9/Exiles | Entered Mines 10282 | -8/Mines | 12-ASH came to Exiles' defense 10339 | -8/Mines | Found Prototype Processor 10339 | -8/Mines | Identified Exp. Core Analyzer 10493 | -8/Mines | Discovered new exit (range 5) 10504 | -8/Mines | Destroyed by G-47 Trooper with Particle Gun Last Messages --------------- 10347_ R-06 Scavenger crushed by falling debris. 10347_ R-06 Scavenger system corrupted by crushing effect. 10347_ R-06 Scavenger destroyed. 10347_ 57 Matter crushed. 10349_ U-05 Engineer builds a Wall. 10351_ Acquired Prototype Leg. 10364_ U-05 Engineer lays Concrete. 10373_ Acquired 60 matter. 10373_ U-05 Engineer lays Concrete. 10389_ K-01 Serf collects debris. 10400_ Acquired 68 matter. 10402_ K-01 Serf collects debris. 10493_ EXIT=FOUND 10498_ HV Slug penetrates G-50 Soldier. 10498_ G-50 Soldier suffers critical hit (Destroy). 10498_ Destroyed Hvy. Laser. 10498_ HV Slug penetrates Wall. 10498_ HV Slug penetrates G-47 Trooper. 10501_ HV Slug penetrates Wall. 10504_ Critical hit (Burn: +37). Map ----- +----------------------------------------------------+ | ????????????????????????????????????????????? | | ????????????????????????????????????????????? | | ????????????????????????????????????????????? | | ????????????????????????????????????????????? | | ???????????????????????????????????? ?????? | | ???????????????????????????????????? ?????? | | ???????????????????????????????????? ?????? | | ???????????????????????????????????? ?????? | | ???????????????????????????????????? ?????? | | ???????????????????????????????????? ?????? | | ????????????????????????????????????# ?????? | | ????????????????????????????????????# #????? | | ????????????????????????????????????# #????? | | ????????????????????????????????????# ####?? | | ???????????????????????????????????## ??? | | ????????????????????????????? ??## #??? | | ????????????????????????????? ## ???? | | ?????????????????????????????? #???? | | ????????????????????????????? """ #???? | | ????????????????????????????? """ ##### | | ????????????????????????????? """ | | ??????????????# ??????????????### | | ?????????????## ???????????????## ### #### | | ????????????## ####???????????## #?###??# | | ????????????# < gg #????????????# #??????# | | ????????????# #;;@#????????????# #????### | | ???????????# ????### ######???????# #???## | | ???????????????????# ######### ##### "" | | ???????????????????# "" | | ???????????????????#### "" | | ??????????????????????# ########### | | ??????????????????????## ####?????????##### | | ???????????????????????####????????????????## | | ????????????????????????????????????????????# | | ????????????????????????????????????????????? | | ????????????????????????????????????????????? | | | | | | | | | | | | | | | | | | | | | | | | | | | | | +----------------------------------------------------+ Best States ------------- Heat Dissipation 54 Energy Generation 14 Energy Capacity 280 Matter Stores 300 Matter Capacity 1800 Sight Range 16 Terrain Scan Density 10 Armor Coverage 1000 Resistance: EX 90 Evasion (%) 50 Core Analysis 15 Recoil Reduction 2 Item Schematics ----------------- Hacking Suite | -9/Materials | Scanalyzed Robot Schematics ------------------ None Fabricated ------------ Nothing Alien Tech Used ----------------- None Achievements -------------- None Challenges ------------ None Game ------ Seed ArcDecoderTorch Manual? 0 Play Time 00:33:21 Cumulative 1373.4 hours Start 2021.11.11 @ 16:11:27 End 2021.11.11 @ 16:43:31 Sessions 1 Manual Loads 0 Difficulty Rogue Special Mode None Game No. 478 Rogue 478 Adventurer 0 Explorer 0 Win Type - Total 95 Types 21/12/37/5/1/2/15/1/1 Lore% 96 Gallery% 96 Achievement% 86 Wizard Run 0 Options --------- ASCII 0 Keyboard 0 Movement Numpad Keybinds 0 Fullscreen 1 Font 18/SmallcapsGlow Map View 76x50 Tactical HUD 1 Map Filters NONE Filters NONE Steam 1 RUN: 7fab0264-74fe-4204-b85f-4b8d80951881